bitfinex/quotes_SOLUSD_20241031
["timestamp","ask_amount","ask_price","bid_price","bid_amount"]
[1730372594244,10.03523191,176.16,176.13,3.97113367]
[1730372594441,10.03523191,176.16,176.14,5.6773]
[1730372594777,10.03523191,176.15,176.14,5.6773]
[1730372598652,10.03523191,176.16,176.14,5.6773]
[1730372600242,10.03523191,176.16,176.13,23.83620718]
[1730372600465,10.03523191,176.14,176.13,19.8711]
[1730372600649,10.03523191,176.15,176.13,19.8711]
[1730372602556,10.03523191,176.16,176.13,19.8711]
[1730372605162,10.03523191,176.17,176.13,19.8711]
[1730372605367,10.03523191,176.17,176.13,33.86961414]
[1730372605566,10.03523191,176.18,176.13,33.86961414]
[1730372606247,10.03523191,176.18,176.14,10.03523191]
[1730372606450,10.03523191,176.18,176.13,33.86961414]
[1730372606772,10.03523191,176.18,176.14,10.03523191]
[1730372608969,10.03523191,176.19,176.15,19.8693]
[1730372611266,10.03523191,176.18,176.15,19.8693]
[1730372612369,10.03523191,176.17,176.15,19.8693]
[1730372612573,10.03523191,176.18,176.15,19.8693]
[1730372613264,10.03523191,176.17,176.15,19.8693]
[1730372613473,10.03523191,176.18,176.15,19.8693]
[1730372614774,10.03523191,176.17,176.15,14.1924]
[1730372614950,10.03523191,176.17,176.15,19.8693]
[1730372615353,10.03523191,176.18,176.15,19.8693]
[1730372615540,10.03523191,176.19,176.15,29.90453191]
[1730372615752,10.03523191,176.18,176.15,19.8693]
[1730372616651,10.03523191,176.18,176.15,14.1924]
[1730372616851,10.03523191,176.18,176.15,18.16030505]
[1730372618456,10.03523191,176.18,176.15,23.83720505]
[1730372619749,10.03523191,176.18,176.15,19.8693]
[1730372619948,10.03523191,176.18,176.15,23.83822639]
[1730372620175,10.03523191,176.18,176.15,23.83750245]
[1730372621259,10.03523191,176.18,176.15,19.8693]
[1730372621659,10.03523191,176.17,176.15,14.1924]
[1730372622260,5.80049,176.21,176.14,9.64540245]
[1730372622261,10.03523191,176.16,176.14,9.64540245]
[1730372622458,10.03523191,176.17,176.14,9.64540245]
[1730372623483,10.03523191,176.17,176.14,23.83860245]
[1730372623678,10.03523191,176.15,176.14,3.96820245]
[1730372623888,10.03523191,176.15,176.11,3.96820245]
[1730372624072,23.902374,176.16,176.09,3.96820245]
[1730372624755,23.902374,176.16,176.08,3.96820245]
[1730372624963,10.03523191,176.09,176.08,3.96820245]
[1730372625459,10.03523191,176.09,176.05,4.81982625]
[1730372625676,10.03523191,176.06,176.05,4.81982625]
[1730372625885,10.03523191,176.06,176.05,0.8516238]
[1730372629364,15.71503191,176.06,176.05,0.8516238]
[1730372630391,15.84052191,176.06,176.01,3.97126047]
[1730372630586,10.03523191,176.02,176.01,3.97126047]
[1730372631169,10.03523191,176.02,176.0,3.97126047]
[1730372631366,10.03523191,176.01,176.0,3.97126047]
[1730372631589,10.03523191,176.04,176.0,29.92153191]
[1730372631761,10.03523191,176.04,176.01,3.96659312]
[1730372632576,10.03523191,176.04,176.01,9.64799312]
[1730372633568,10.03523191,176.04,176.01,9.64639942]
[1730372634272,10.03523191,176.04,176.0,14.2045]
[1730372634471,10.03523191,176.04,176.0,19.8863]
[1730372635495,10.03523191,176.05,176.0,29.92153191]
[1730372635800,10.03523191,176.07,176.02,10.03523191]
[1730372636383,10.03523191,176.07,176.03,19.8829]
[1730372636682,10.03523191,176.06,176.03,19.8829]
[1730372636996,10.03523191,176.09,176.05,10.03523191]
[1730372637693,10.03523191,176.1,176.06,10.03523191]
[1730372638766,10.03523191,176.1,176.07,19.8783]
[1730372639392,10.03523191,176.11,176.07,19.8783]
[1730372639671,10.03523191,176.12,176.08,10.03523191]
[1730372640593,10.03523191,176.12,176.09,19.8761]
[1730372640989,10.03523191,176.13,176.09,19.8761]
[1730372641190,10.03523191,176.12,176.09,19.8761]
[1730372641393,10.03523191,176.1,176.08,5.6792]
[1730372641597,10.03523191,176.09,176.08,5.6792]
[1730372642600,10.03523191,176.09,176.06,14.1995]
[1730372642903,10.03523191,176.11,176.06,24.23473191]
[1730372643087,10.03523191,176.12,176.07,10.03523191]
[1730372643984,10.03523191,176.11,176.06,30.16072191]
[1730372644298,10.03523191,176.11,176.08,14.198]
[1730372645981,10.03523191,176.12,176.08,14.198]
[1730372646183,10.03523191,176.14,176.09,10.03523191]
[1730372646382,15.1253,176.19,176.08,14.198]
[1730372646383,10.03523191,176.11,176.08,14.198]
[1730372648295,10.03523191,176.1,176.08,14.198]
[1730372650583,10.03523191,176.14,176.1,10.03523191]
[1730372650796,10.03523191,176.14,176.11,19.8738]
[1730372651005,10.03523191,176.13,176.11,19.8738]
[1730372651886,10.03523191,176.13,176.11,14.1956]
[1730372653601,10.03523191,176.14,176.11,14.1956]
[1730372659005,10.03523191,176.13,176.11,14.1956]
[1730372661005,10.03523191,176.12,176.11,14.1956]
[1730372661217,15.1253,176.19,176.11,14.1956]
[1730372661218,10.03523191,176.13,176.11,14.1956]
[1730372661511,10.03523191,176.14,176.11,14.1956]
[1730372661721,5.676,176.18,176.11,14.1956]
[1730372661907,10.03523191,176.15,176.11,14.1956]
[1730372662908,10.03523191,176.17,176.12,10.03523191]
[1730372663122,10.03523191,176.18,176.13,10.03523191]
[1730372663324,10.03523191,176.19,176.14,10.03523191]
[1730372663694,10.03523191,176.18,176.14,10.03523191]
[1730372663896,10.03523191,176.19,176.14,10.03523191]
[1730372664399,10.03523191,176.19,176.15,19.8693]
[1730372665016,10.03523191,176.18,176.15,19.8693]
[1730372666307,10.03523191,176.17,176.14,20.0]
[1730372666808,10.03523191,176.18,176.14,30.03523191]
[1730372667213,10.03523191,176.17,176.14,20.0]
[1730372667411,10.03523191,176.17,176.15,19.8693]
[1730372668322,10.03523191,176.18,176.15,19.8693]
[1730372673907,10.03523191,176.16,176.15,14.1924]
[1730372674206,10.03523191,176.16,176.14,0.85129752]
[1730372674413,10.03523191,176.15,176.14,0.85129752]
[1730372674612,10.03523191,176.17,176.14,20.72179752]
[1730372674828,10.03523191,176.16,176.14,20.72179752]
[1730372677715,10.03523191,176.17,176.14,20.72179752]
[1730372679634,10.03523191,176.18,176.14,30.75702943]
[1730372679847,10.03523191,176.24,176.17,10.03523191]
[1730372680019,10.03523191,176.29,176.23,10.03523191]
[1730372680330,10.03523191,176.29,176.18,20.22549]
[1730372680331,10.03523191,176.29,176.24,10.03523191]
[1730372680528,21.5358,176.31,176.2,0.12549]
[1730372680704,10.03523191,176.26,176.2,0.12549]
[1730372680911,10.03523191,176.26,176.21,10.03523191]
[1730372681628,10.03523191,176.26,176.22,5.6747]
[1730372682414,10.03523191,176.25,176.22,19.8615]
[1730372684827,10.03523191,176.25,176.22,14.1868]
[1730372686033,10.03523191,176.24,176.2,10.03523191]
[1730372686334,10.03523191,176.22,176.19,5.6756]
[1730372686630,5.8724,176.29,176.18,14.1896]
[1730372686631,10.03523191,176.2,176.18,19.8656]
[1730372687719,10.03523191,176.2,176.18,14.1896]
[1730372688336,10.03523191,176.19,176.15,19.8691]
[1730372689235,10.03523191,176.18,176.15,19.8691]
[1730372689443,10.03523191,176.17,176.15,14.1922]
[1730372690438,10.03523191,176.16,176.15,14.1922]
[1730372690637,10.03523191,176.16,176.14,0.85129752]
[1730372690833,10.03523191,176.15,176.14,0.85129752]
[1730372691146,33.93760591,176.15,176.14,0.85129752]
[1730372692151,39.61450591,176.15,176.14,0.85129752]
[1730372692553,45.25508173,176.15,176.14,0.85129752]
[1730372693248,61.15637946,176.15,176.14,0.85129752]
[1730372693550,24.002374,176.14,176.05,20.0]
[1730372693749,15.67580773,176.08,176.05,25.6801]
[1730372694059,15.67580773,176.07,176.04,14.2012]
[1730372694348,15.77580773,176.13,176.02,5.6809]
[1730372694349,15.67580773,176.05,176.02,5.6809]
[1730372694750,15.67580773,176.05,176.01,40.73805113]
[1730372694751,15.67580773,176.04,176.01,23.84357737]
[1730372694935,15.67580773,176.04,176.01,23.84364432]
[1730372695324,15.67580773,176.03,176.01,23.84364432]
[1730372696152,15.67580773,176.02,176.01,19.8848]
[1730372696949,15.67580773,176.02,176.01,14.2036]
[1730372697340,15.67580773,176.02,175.99,14.32622873]
[1730372697546,15.67580773,176.0,175.99,8.64412873]
[1730372697955,15.67580773,176.0,175.98,5.6824]
[1730372698132,15.67580773,175.99,175.98,5.6824]
[1730372698944,15.67580773,175.99,175.97,24.70430283]
[1730372699128,15.67580773,175.98,175.97,24.70430283]
[1730372699746,15.67580773,175.98,175.97,15.05899132]
[1730372700548,15.67580773,175.98,175.97,20.74169132]
[1730372700957,15.67580773,175.99,175.97,20.74169132]
[1730372703551,15.67580773,176.0,175.97,20.74169132]
[1730372705239,15.67580773,176.01,175.97,20.74169132]
[1730372706152,15.67580773,176.01,175.97,24.70430283]
[1730372706335,15.67580773,176.01,175.97,20.74169132]
[1730372706733,15.67580773,176.0,175.97,20.74169132]
[1730372707233,15.67580773,176.01,175.97,24.70430283]
[1730372707952,15.67580773,176.01,175.97,20.74169132]
[1730372708259,15.67580773,176.01,175.97,24.69948893]
[1730372708550,15.67580773,176.01,175.97,20.74169132]
[1730372709156,15.67580773,176.02,175.97,40.37529666]
[1730372709835,15.67580773,176.02,175.97,68.78919666]
[1730372710446,15.67580773,176.04,175.99,15.67580773]
[1730372710637,15.67580773,176.03,175.98,19.63360534]
[1730372711547,15.67580773,176.03,175.98,15.67580773]
[1730372711753,15.67580773,176.03,175.99,19.8874]
[1730372711951,15.67580773,176.02,175.99,19.8874]
[1730372712759,15.67580773,176.03,175.99,19.8874]
[1730372713059,15.67580773,176.02,175.99,19.8874]
[1730372714462,10.04041063,176.02,175.99,14.2053]
[1730372715947,10.04041063,176.02,175.99,19.8874]
[1730372716536,10.04041063,176.04,175.99,29.92781063]
[1730372716765,10.04041063,176.05,176.0,10.04041063]
[1730372717148,10.04041063,176.06,176.01,10.04041063]
[1730372717343,10.04041063,176.05,176.0,10.04041063]
[1730372717937,10.04041063,176.05,176.01,19.8851]
[1730372719932,10.04041063,176.04,176.01,14.2037]
[1730372721847,10.04041063,176.03,176.01,14.2037]
[1730372723380,10.04041063,176.02,176.01,14.2037]
[1730372726072,10.04041063,176.03,176.01,14.2037]
[1730372726973,10.04041063,176.02,176.01,14.2037]
[1730372728489,10.04041063,176.03,176.01,14.2037]
[1730372733076,10.04041063,176.02,176.01,14.2037]
[1730372737965,10.04041063,176.02,175.99,28.4107]
[1730372738190,10.04041063,176.01,175.99,28.4107]
[1730372740961,10.04041063,176.0,175.98,19.8885]
[1730372741174,5.681,176.03,175.98,19.8885]
[1730372741175,10.04041063,175.99,175.98,19.8885]
[1730372741483,10.04041063,175.99,175.98,14.2061]
[1730372741674,10.04041063,175.99,175.98,19.8885]
[1730372742060,10.04041063,175.99,175.97,20.74169132]
[1730372742576,10.04041063,175.98,175.97,20.74169132]
[1730372742884,10.04041063,175.98,175.97,0.85209132]
[1730372743087,15.72281063,175.98,175.97,0.85209132]
[1730372743288,15.72281063,175.98,175.91,14.2114]
[1730372743463,10.04041063,175.93,175.91,14.2114]
[1730372744584,10.04041063,175.92,175.91,14.2114]
[1730372745283,10.04041063,175.92,175.89,5.6852]
[1730372745484,10.04041063,175.9,175.89,5.6852]
[1730372746099,10.04041063,175.9,175.88,28.54850968]
[1730372746402,10.04041063,175.89,175.88,28.54850968]
[1730372748295,10.04041063,175.89,175.86,0.5833703]
[1730372748466,10.04041063,175.87,175.86,6.2695703]
[1730372748678,10.04041063,175.88,175.86,20.4853703]
[1730372749068,10.04041063,175.91,175.87,10.04041063]
[1730372749385,10.04041063,175.9,175.86,20.4853703]
[1730372749992,10.04041063,175.9,175.86,48.9170703]
[1730372750489,10.04041063,175.89,175.86,20.4853703]
[1730372750990,10.04041063,175.88,175.86,20.4853703]
[1730372751169,10.04041063,175.87,175.86,20.4853703]
[1730372752184,10.04041063,175.88,175.86,20.4853703]
[1730372752369,10.04041063,175.89,175.86,20.4853703]
[1730372753080,10.04041063,175.87,175.86,20.4853703]
[1730372753587,10.04041063,175.88,175.86,20.4853703]
[1730372753971,10.04041063,175.87,175.86,20.4853703]
[1730372754370,10.04041063,175.87,175.86,14.7991703]
[1730372755385,10.04041063,175.88,175.86,20.4854703]
[1730372757280,10.04041063,175.87,175.86,20.4854703]
[1730372757867,10.04041063,175.88,175.86,20.4854703]
[1730372760284,10.04041063,175.9,175.86,30.52588093]
[1730372760593,10.04041063,175.91,175.86,30.52588093]
[1730372762395,10.04041063,175.9,175.86,30.52588093]
[1730372762593,10.04041063,175.87,175.86,20.4854703]
[1730372762814,10.04041063,175.87,175.86,0.5833703]
[1730372763973,10.04041063,175.87,175.86,6.2696703]
[1730372764500,10.04041063,175.88,175.86,6.2696703]
[1730372764792,10.04041063,175.89,175.86,20.4854703]
[1730372765198,10.04041063,175.88,175.86,20.4854703]
[1730372765793,10.04041063,175.87,175.86,20.4854703]
[1730372766380,10.04041063,175.87,175.86,0.5833703]
[1730372767004,10.04041063,175.87,175.86,6.2696703]
[1730372767187,10.04041063,175.87,175.86,0.5833703]
[1730372768001,10.04041063,175.87,175.86,6.2696703]
[1730372768797,10.04041063,175.88,175.86,6.2696703]
[1730372771705,10.04041063,175.88,175.86,20.4854703]
[1730372772291,10.04041063,175.89,175.86,20.4854703]
[1730372775803,10.04041063,175.9,175.86,20.4854703]
[1730372776190,10.04041063,175.91,175.87,10.04041063]
[1730372777196,10.04041063,175.91,175.86,30.52588093]
[1730372777989,10.04041063,175.9,175.86,30.52588093]
[1730372779104,10.04041063,175.91,175.86,30.52588093]
[1730372779292,10.04041063,175.9,175.86,30.52588093]
[1730372779917,10.04041063,175.92,175.87,10.04041063]
[1730372780207,10.04041063,175.93,175.89,10.04041063]
[1730372781798,10.04041063,175.93,175.9,19.8976]
[1730372782193,10.04041063,175.91,175.88,5.6856]
[1730372782512,10.04041063,175.89,175.88,5.6856]
[1730372783094,10.04041063,175.89,175.88,19.8998]
[1730372783592,10.04041063,175.89,175.86,0.5833703]
[1730372783793,10.04041063,175.88,175.87,5.6859]
[1730372784812,10.04041063,175.9,175.87,19.9009]
[1730372788405,10.04041063,175.91,175.87,29.94131063]
[1730372788992,10.04041063,175.92,175.87,29.94131063]
[1730372790198,10.04041063,175.91,175.87,19.9009]
[1730372791036,10.04041063,175.94,175.89,10.04041063]
[1730372792009,10.04041063,175.95,175.9,10.04041063]
[1730372792219,10.04041063,175.97,175.92,10.04041063]
[1730372792517,10.04041063,175.97,175.93,19.8941]
[1730372793416,10.04041063,175.96,175.93,19.8941]
[1730372794111,10.04041063,175.96,175.91,10.04041063]
[1730372794688,10.04041063,175.98,175.93,10.04041063]
[1730372795611,10.04041063,175.98,175.94,10.04041063]
[1730372795813,10.04041063,175.98,175.93,10.04041063]
[1730372796190,10.04041063,175.98,175.94,19.893]
[1730372798989,5.6816,176.01,175.94,19.893]
[1730372798990,10.04041063,175.97,175.94,19.893]
[1730372799208,10.04041063,175.96,175.94,19.893]
[1730372799604,10.04041063,175.95,175.89,10.04041063]
[1730372799913,10.04041063,175.95,175.91,14.2116]
[1730372800108,10.04041063,175.98,175.93,10.04041063]
[1730372801201,10.04041063,176.0,175.95,10.04041063]
[1730372802120,10.04041063,176.0,175.97,5.6827]
[1730372802325,10.04041063,175.99,175.97,5.6827]
[1730372804229,10.04041063,175.99,175.96,19.8907]
[1730372805121,5.6816,176.01,175.96,19.8907]
[1730372805441,10.04041063,175.98,175.96,19.8907]
[1730372805722,10.04041063,175.99,175.96,19.8907]
[1730372806106,10.04041063,175.99,175.96,14.2076]
[1730372808710,10.04041063,176.0,175.96,14.2076]
[1730372811206,5.6812,176.02,175.96,14.2076]
[1730372811207,10.04041063,176.01,175.96,29.93111063]
[1730372812931,10.04041063,176.02,175.97,10.04041063]
[1730372813147,10.04041063,176.03,175.98,10.04041063]
[1730372813501,10.04041063,176.02,175.97,10.04041063]
[1730372814626,10.04041063,176.02,175.98,19.8885]
[1730372817305,10.04041063,176.01,175.98,19.8885]
[1730372817512,10.04041063,175.99,175.98,14.2061]
[1730372818636,10.04041063,175.99,175.96,28.4155]
[1730372818934,10.04041063,175.99,175.95,19.8919]
[1730372820816,10.04041063,176.0,175.95,19.8919]
[1730372821015,10.04041063,176.0,175.95,29.93231063]
[1730372822127,10.04041063,175.99,175.95,19.8919]
[1730372826041,10.04041063,175.97,175.95,14.2085]
[1730372826237,10.04041063,175.96,175.93,5.684]
[1730372826568,10.04041063,175.94,175.89,20.11869696]
[1730372826854,10.04041063,175.92,175.89,14.213]
[1730372827649,10.04041063,175.91,175.89,14.213]
[1730372829346,5.6839,175.94,175.89,14.213]
[1730372829347,10.04041063,175.94,175.89,24.25341063]
[1730372829541,10.04041063,175.95,175.91,10.04041063]
[1730372829752,10.04041063,175.95,175.9,10.04041063]
[1730372830134,5.6821,175.99,175.89,14.213]
[1730372830135,10.04041063,175.96,175.91,10.04041063]
[1730372830545,10.04041063,175.96,175.92,19.8954]
[1730372830952,10.04041063,175.97,175.92,29.93581063]
[1730372831139,10.04041063,175.98,175.93,10.04041063]
[1730372831667,10.04041063,175.98,175.94,10.04041063]
[1730372832338,10.04041063,175.99,175.94,10.04041063]
[1730372832540,10.04041063,175.99,175.95,10.04041063]
[1730372832846,10.04041063,175.99,175.94,10.04041063]
[1730372833351,10.04041063,176.0,175.95,10.04041063]
[1730372833538,10.04041063,176.02,175.97,10.04041063]
[1730372833750,15.72151063,176.03,175.98,10.04041063]
[1730372834437,10.04041063,176.02,175.98,10.04041063]
[1730372834641,10.04041063,176.02,175.99,5.6821]
[1730372835346,10.04041063,176.01,175.98,14.206]
[1730372835544,10.04041063,176.02,175.98,19.8884]
[1730372836445,10.04041063,176.01,175.98,19.8884]
[1730372836828,10.04041063,176.01,175.98,14.206]
[1730372838646,10.04041063,176.0,175.95,10.04041063]
[1730372839842,10.04041063,176.01,175.97,19.8896]
[1730372841055,10.04041063,176.0,175.97,19.8896]
[1730372841248,10.04041063,175.99,175.97,19.8896]
[1730372841744,10.04041063,176.0,175.97,19.8896]
[1730372842132,15.652,176.04,175.97,19.8896]
[1730372842133,10.04041063,176.01,175.97,19.8896]
[1730372842334,10.04041063,176.01,175.97,29.93001063]
[1730372842727,10.04041063,176.01,175.97,19.8896]
[1730372843459,10.04041063,176.03,175.98,10.04041063]
[1730372844866,10.04041063,176.05,176.0,10.04041063]
[1730372845145,10.04041063,176.03,175.98,30.04041063]
[1730372845381,10.04041063,176.03,175.98,10.04041063]
[1730372845654,10.04041063,176.03,175.99,19.8874]
[1730372849562,10.04041063,176.02,175.99,19.8874]
[1730372849867,10.04041063,176.0,175.97,5.6826]
[1730372850962,10.04041063,176.01,175.97,29.92991063]
[1730372851165,10.04041063,176.01,175.97,19.8895]
[1730372852663,10.04041063,176.0,175.97,19.8895]
[1730372855459,10.04041063,176.01,175.97,29.92991063]
[1730372855835,10.04041063,176.03,175.98,10.04041063]
[1730372856037,10.04041063,176.03,175.99,10.04041063]
[1730372857163,10.04041063,176.03,176.0,5.6818]
[1730372857544,10.04041063,176.04,176.01,10.04041063]
[1730372857747,10.04041063,176.06,176.02,10.04041063]
[1730372858537,10.04041063,176.06,176.01,10.04041063]
[1730372858933,10.04041063,176.06,176.02,19.884]
[1730372859160,5.6793,176.08,176.02,19.884]
[1730372859161,10.04041063,176.04,176.02,19.884]
[1730372860142,10.04041063,176.04,176.02,14.2029]
[1730372861765,10.04041063,176.05,176.02,14.2029]
[1730372863471,10.04041063,176.06,176.02,14.2029]
[1730372864660,10.04041063,176.05,176.02,19.884]
[1730372869977,10.04041063,176.06,176.02,19.884]
[1730372870844,10.04041063,176.05,176.02,19.884]
[1730372871048,10.04041063,176.03,176.0,19.8863]
[1730372871266,10.04041063,176.02,176.0,19.8863]
[1730372872455,10.04041063,176.02,176.0,14.2045]
[1730372872653,10.04041063,176.02,175.98,5.6824]
[1730372872654,5.6808,176.03,175.98,5.6824]
[1730372872858,10.04041063,176.01,175.98,5.6824]
[1730372874582,10.04041063,176.01,175.98,19.8885]
[1730372875668,10.04041063,176.03,175.99,10.04041063]
[1730372876572,10.04041063,176.11,176.02,30.16590063]
[1730372876757,15.71831063,176.12,176.07,10.04041063]
[1730372877282,10.04041063,176.1,176.05,10.04041063]
[1730372877783,10.04041063,176.1,176.05,15.72041063]
[1730372880453,10.04041063,176.1,176.05,29.92091063]
[1730372883459,10.04041063,176.07,176.05,14.2005]
[1730372885190,10.04041063,176.08,176.05,14.2005]
[1730372891369,5.04041063,176.08,176.05,14.2005]
[1730372893569,15.71931063,176.09,176.04,10.04041063]
[1730372894606,15.71931063,176.09,176.05,5.6802]
[1730372895093,10.04041063,176.08,176.05,5.6802]
[1730372895665,10.04041063,176.09,176.05,5.6802]
[1730372897196,15.71921063,176.1,176.05,15.72061063]
[1730372899477,10.04041063,176.09,176.05,15.72061063]
[1730372899680,10.04041063,176.08,176.05,5.6802]
[1730372900695,10.04041063,176.08,176.03,24.24171063]
[1730372900886,10.04041063,176.08,176.04,5.6805]
[1730372901385,10.04041063,176.05,176.0,14.2041]
[1730372901586,10.04041063,176.04,176.01,30.0]
[1730372902295,10.04041063,176.04,176.0,14.2041]
[1730372902676,10.04041063,176.04,176.0,19.8859]
[1730372903477,10.04041063,176.06,176.02,10.04041063]
[1730372903674,10.04041063,176.09,176.04,10.04041063]
[1730372903880,10.04041063,176.09,176.05,10.04041063]
[1730372904079,10.04041063,176.12,176.08,10.04041063]
[1730372904472,10.04041063,176.12,176.08,15.71941063]
[1730372904678,10.04041063,176.13,176.08,15.71941063]
[1730372905602,10.04041063,176.12,176.08,29.91741063]
[1730372906005,10.04041063,176.11,176.07,5.6794]
[1730372906196,10.04041063,176.1,176.07,5.6794]
[1730372906380,10.04041063,176.11,176.07,5.6794]
[1730372907480,10.04041063,176.1,176.06,15.72011063]
[1730372907800,10.04041063,176.1,176.06,5.6797]
[1730372908006,10.04041063,176.1,176.06,15.72011063]
[1730372908613,10.04041063,176.09,176.06,5.6797]
[1730372912006,10.04041063,176.1,176.06,5.6797]
[1730372913407,10.04041063,176.1,176.06,19.8794]
[1730372913816,10.04041063,176.1,176.06,29.91981063]
[1730372917307,15.71861063,176.11,176.06,29.91981063]
[1730372918222,10.04041063,176.1,176.06,14.1997]
[1730372918794,15.71861063,176.11,176.06,24.24011063]
[1730372919695,15.71861063,176.11,176.06,29.91991063]
[1730372920617,0.25912,189.85,176.08,10.04041063]
[1730372920618,10.04041063,176.12,176.08,10.04041063]
[1730372920813,10.04041063,176.15,176.1,10.04041063]
[1730372921318,10.04041063,176.17,176.12,10.04041063]
[1730372921690,10.04041063,176.17,176.13,5.6776]
[1730372922012,10.04041063,176.15,176.13,14.194]
[1730372922317,10.04041063,176.14,176.13,14.194]
[1730372922924,10.04041063,176.14,176.1,19.8749]
[1730372923907,10.04041063,176.13,176.1,19.8749]
[1730372924224,10.04041063,176.13,176.1,14.1964]
[1730372924425,10.04041063,176.11,176.1,14.1964]
[1730372925024,10.04041063,176.11,176.04,60.98201063]
[1730372925232,10.04041063,176.09,176.06,16.39]
[1730372925799,10.04041063,176.09,176.05,19.8807]
[1730372926609,10.04041063,176.1,176.05,29.92111063]
[1730372926923,10.04041063,176.1,176.06,10.04041063]
[1730372927122,10.04041063,176.11,176.07,5.6795]
[1730372927300,10.04041063,176.13,176.08,10.04041063]
[1730372928631,10.04041063,176.12,176.07,29.91871063]
[1730372928818,10.04041063,176.13,176.08,10.04041063]
[1730372929109,10.04041063,176.13,176.09,19.8761]
[1730372929431,10.04041063,176.12,176.09,19.8761]
[1730372930447,10.04041063,176.12,176.09,14.1972]
[1730372931126,10.04041063,176.11,176.09,14.1972]
[1730372931312,10.04041063,176.1,176.06,10.04041063]
[1730372931516,10.04041063,176.09,176.05,19.8799]
[1730372932218,10.04041063,176.1,176.05,29.92031063]
[1730372934038,10.04041063,176.11,176.06,10.04041063]
[1730372935134,10.04041063,176.11,176.07,5.6795]
[1730372935733,10.04041063,176.1,176.07,5.6795]
[1730372936107,10.04041063,176.1,176.06,19.8795]
[1730372937737,10.04041063,176.09,176.06,19.8795]
[1730372938533,10.04041063,176.08,176.06,19.8795]
[1730372938923,10.04041063,176.07,176.04,5.6805]
[1730372939533,10.04041063,176.07,176.03,19.8824]
[1730372942337,10.04041063,176.06,176.03,19.8824]
[1730372943337,10.04041063,176.07,176.03,14.2016]
[1730372944516,10.04041063,176.07,176.03,19.8824]
[1730372946042,10.04041063,176.05,176.03,14.2016]
[1730372947447,10.04041063,176.06,176.03,14.2016]
[1730372948737,10.04041063,176.07,176.03,19.8824]
[1730372949843,10.04041063,176.06,176.03,19.8824]
[1730372956244,10.04041063,176.04,176.01,5.90054896]
[1730372956437,10.04041063,176.04,175.99,24.24531063]
[1730372956635,10.04041063,176.05,176.0,10.04041063]
[1730372957017,10.04041063,176.04,176.0,10.04041063]
[1730372957235,10.04041063,176.04,175.99,24.24531063]
[1730372957617,10.04041063,176.03,175.99,29.92741063]
[1730372958950,10.04041063,176.02,175.99,19.887]
[1730372959546,10.04041063,176.02,175.99,14.2049]
[1730372961231,10.04041063,176.01,175.99,14.2049]
[1730372963940,10.04041063,176.01,175.99,15.05693442]
[1730372964656,15.72131063,176.03,175.99,20.73903442]
[1730372965548,15.2991,176.1,175.99,20.73903442]
[1730372965549,10.04041063,176.04,175.99,30.77944505]
[1730372965750,10.04041063,176.04,176.0,10.04041063]
[1730372966855,10.04041063,176.03,176.0,19.8863]
[1730372967935,10.04041063,176.02,176.0,19.8863]
[1730372968934,10.04041063,176.02,176.0,14.2045]
[1730372969446,10.04041063,176.03,176.0,14.2045]
[1730372969657,10.04041063,176.03,176.0,19.8863]
[1730372977341,10.04041063,176.02,176.0,14.2045]
[1730372977855,10.04041063,176.01,175.99,0.85203442]
[1730372978044,10.04041063,176.0,175.99,0.85203442]
[1730372979429,15.72221063,176.0,175.99,0.85203442]
[1730372985859,10.04041063,176.0,175.99,0.85203442]
[1730372989854,10.04041063,176.04,175.99,16.57454505]
[1730372990040,10.04041063,176.03,175.99,16.57454505]
[1730372990761,0.556804,176.0,175.99,30.77984505]
[1730372992938,0.556804,176.0,175.99,20.73943442]
[1730372994937,16.50450463,176.0,175.99,0.85203442]
[1730372995142,24.027864,175.99,175.98,0.1601204]
[1730372995344,24.027864,175.99,175.87,14.2149]
[1730372995535,10.04041063,175.91,175.87,19.9009]
[1730372995741,10.04041063,175.92,175.87,29.94131063]
[1730372996149,10.04041063,175.91,175.86,10.04041063]
[1730372997145,10.04041063,175.91,175.87,5.686]
[1730372997754,10.04041063,175.92,175.87,29.94141063]
[1730372999155,10.04041063,175.91,175.87,29.94141063]
[1730372999364,10.04041063,175.91,175.87,19.901]
[1730373000470,10.04041063,175.9,175.87,19.901]
[1730373000866,10.04041063,175.91,175.87,19.901]
[1730373002551,10.04041063,175.89,175.87,19.901]
[1730373002869,40.16164252,175.95,175.87,19.901]
[1730373002870,10.04041063,175.88,175.87,19.901]
[1730373003468,10.04041063,175.88,175.87,14.215]
[1730373003849,10.04041063,175.88,175.84,14.2174]
[1730373004071,10.04041063,175.85,175.84,14.2174]
[1730373004461,10.04041063,175.86,175.84,14.2174]
[1730373007668,10.04041063,175.87,175.84,14.2174]
[1730373008561,10.04041063,175.87,175.84,19.9043]